Cogmind - Beta 13 @@@ ROGUE MODE // 2024.04.09 @ 04:06:54 Player: Miwa Result: Destroyed by D-53 Grenadier with Mini Grenade Launcher Performance ------------- Evolutions (0) 0 Regions Visited (2) 400 Robots Destroyed (8) 40 Value Destroyed (162) 162 Prototype IDs (2) 40 Alien Tech Used (0) 0 Bonus (0) 0 TOTAL SCORE: 642 Bonus ------- None Cogmind --------- Core Integrity 0/250 Matter 300/300 Energy 100/100 System Corruption 0% Temperature Cool (0) Movement Core (100) Ox1 Location -10/Mines Parts ------- > --- POWER (1) -------- (None) > --- PROPULSION (2) --- (None) > --- UTILITY (2) ------ Small Storage Unit Visual Processing Unit > --- WEAPON (2) ------- (None) > --- INVENTORY (8) ---- Ion Engine Compact Wheel Hover Unit Hover Unit Signal Interpreter Targeting Computer Datajack Peak State ------------ > --- POWER ------------ Light Nuclear Core > --- PROPULSION ------- Wheel Compact Wheel > --- UTILITY ---------- Small Storage Unit Visual Processing Unit > --- WEAPON ----------- Particle Gun Assault Rifle > --- INVENTORY -------- Ion Engine Compact Wheel Hover Unit Hover Unit Signal Interpreter Targeting Computer Datajack [Rating: 11] Favorites ----------- Power Ion Engine Engine Ion Engine Power Core Light Nuclear Core Propulsion Wheel Wheel Wheel Utility Small Storage Unit Storage Small Storage Unit Processor Visual Processing Unit Weapon Assault Rifle Energy Gun Small Laser Ballistic Gun Assault Rifle Build | -11 -10 -10 ------- Run | Yrd Mat Min Slots Evolved . | . . . Power . | . . . Propulsion . | . . . Utility . | . . . Weapon . | . . . Parts Attached 13 | 8 1 4 Power 2 | 1 . 1 Engine 1 | 1 . . Core 1 | . . 1 Reactor . | . . . Propulsion 5 | 4 . 1 Treads . | . . . Leg . | . . . Wheel 5 | 4 . 1 Hover . | . . . Flight . | . . . Utility 2 | 1 1 . Device . | . . . Storage 1 | 1 . . Processor 1 | . 1 . Hackware . | . . . Protection . | . . . Artifact . | . . . Weapon 4 | 2 . 2 Energy Gun 2 | 1 . 1 Energy Cannon . | . . . Ballistic Gun 2 | 1 . 1 Ballistic Cannon . | . . . Launcher . | . . . Special Weapon . | . . . Impact Weapon . | . . . Slashing Weapon . | . . . Piercing Weapon . | . . . Special Melee Weapon . | . . . Unidentified Prototypes . | . . . Parts Lost 7 | . . 7 Power 1 | . . 1 Propulsion 3 | . . 3 Utility . | . . . Weapon 3 | . . 3 Highest Loss Streak 5 | . . 5 To Critical Strikes . | . . . Average Slot Usage (%) 98 | . 98 97 Engine 11 | . 14 8 Core 2 | . . 4 Wheel 27 | . 28 27 Storage 14 | . 14 14 Processor 13 | . 12 14 Energy Gun 11 | . 14 10 Ballistic Gun 15 | . 14 16 Naked Turns . | . . . Heaviest Build 15 | 13 13 15 Greatest Support 32 | 32 20 26 Greatest Overweight (x) 1 | . . 1 Average Overweight (x) . | . . . Largest Inventory Capacity 8 | 8 8 8 Average Capacity 7 | 7 8 8 Most Carried 8 | 5 7 8 Average Carried 5 | 1 5 7 Final Capacity 8 | 8 8 8 Final Carried 7 | 3 7 7 Class Distribution -------------------- 86% | Mutant 13% | Scavenger-Mutant Dominant Class ---------------- Mutant | -10/Materials Mutant | -10/Mines Resources | -11 -10 -10 ----------- Run | Yrd Mat Min Matter Collected 388 | 226 97 65 Remotely . | . . . Salvage Created 206 | 49 80 77 Parts 18 | 4 11 3 Haulers Intercepted . | . . . Recyclers Shooed . | . . . Parts Field Recycled . | . . . Retrieved Matter . | . . . Parts Self-Destructed . | . . . Prevented . | . . . Kills | -11 -10 -10 ------- Run | Yrd Mat Min Combat Hostiles Destroyed 3 | . 1 2 Guns 3 | . 1 2 Classes Destroyed 5 | 1 4 . Worker 1 | . 1 . Tunneler 2 | 2 . . Operator 1 | . 1 . Watcher 1 | . 1 . Grunt 3 | . 1 2 Best Kill Streak 2 | 2 2 2 Combat Bots Only 2 | . 1 2 Max Kills in Single Turn 1 | 1 1 1 Gunslinging . | . . . Exploded . | . . . Melee . | . . . Uniques/NPCs Destroyed . | . . . Combat | -11 -10 -10 -------- Run | Yrd Mat Min Hostile Shots Fired 31 | . 7 24 Missed 6 | . 3 3 Damage Taken 824 | . 43 781 Core 250 | . 10 240 Absorbed by Shields . | . . . Core Remaining (%) 100 | 100 . . Volleys Fired 20 | 2 13 5 Largest 2 | 2 2 2 Hottest 60 | 60 60 43 Shots Fired 34 | 4 22 8 Gun 34 | 4 22 8 Cannon . | . . . Launcher . | . . . Special . | . . . Kinetic 23 | 2 13 8 Thermal 11 | 2 9 . Explosive . | . . . Electromagnetic . | . . . Robot Hit Streak 7 | 3 7 3 Robot Miss Streak 3 | . 3 1 Penetration Max . | . . . Secondary Targets . | . . . Shots Hit Robots 22 | 3 13 6 Core Hits 13 | 2 6 5 Critical Kills . | . . . Critical Parts Destroyed . | . . . Critical Strikes . | . . . Melee Attacks . | . . . Impact . | . . . Slashing . | . . . Piercing . | . . . Sneak Attacks . | . . . Combat Hostiles . | . . . Follow-up Attacks . | . . . Damage Inflicted 279 | 35 158 86 Guns 276 | 35 158 83 Cannons . | . . . Explosions . | . . . Melee . | . . . Ramming 3 | . . 3 Kinetic 187 | 14 90 83 Thermal 89 | 21 68 . Explosive . | . . . Electromagnetic . | . . . Impact . | . . . Slashing . | . . . Piercing . | . . . Highest Corruption . | . . . Average Corruption . | . . . Corruption Purged . | . . . Corruption Blocked . | . . . Overload Shots . | . . . Overflow Damage . | . . . Projectiles . | . . . Explosions . | . . . Melee . | . . . Knockbacks . | . . . Impact . | . . . Kinetic . | . . . Secondary . | . . . Self-Inflicted Damage 1 | . . 1 Shots . | . . . Rammed 4 | . 1 3 Targets Rammed 4 | . 1 3 Kicked . | . . . Crushed . | . . . Highest Temperature 24 | . 24 3 Average Temperature 13 | . 15 3 Received Heat Transfer 54 | . 24 30 Siege Activations . | . . . Robots Corrupted . | . . . Combat Hostiles . | . . . Parts Fried . | . . . Impact Corruptions . | . . . Robots Melted . | . . . Combat Hostiles . | . . . Parts Melted . | . . . Heat Transferred 200 | 50 150 . Parts Sabotaged . | . . . Parts Stolen . | . . . Parts Stripped . | . . . Power Chain Reactions . | . . . Alert | -11 -10 -10 ------- Run | Yrd Mat Min Peak Influence 114 | 10 103 114 Initial 39 | . 6 39 Average 52 | 2 58 62 Maximum Alert Level . | . . . Low Security (%) 100 | 100 100 100 Level 1 . | . . . Level 2 . | . . . Level 3 . | . . . Level 4 . | . . . Level 5 . | . . . High Security . | . . . Max Security . | . . . Squads Dispatched 1 | . 1 . Investigation 1 | . 1 . Extermination . | . . . Reinforcement . | . . . Assault . | . . . Garrison . | . . . Intercept . | . . . Searches Triggered . | . . . Construction Impeded . | . . . Haulers Reinforced . | . . . Active Scanning Responses . | . . . Cargo Convoy Interrupts . | . . . Stealth | -11 -10 -10 --------- Run | Yrd Mat Min Distress Signals . | . . . Communications Jammed . | . . . Distress Signals . | . . . Times Spotted 24 | . 5 19 Peak Tracking Total 12 | . 2 12 Tactical Retreats 3 | . . 3 Traps | -11 -10 -10 ------- Run | Yrd Mat Min Traps Triggered 1 | . 1 . Indirectly . | . . . Trap Hack Attempts . | . . . Triggered . | . . . Disarmed . | . . . Reprogrammed . | . . . Reused . | . . . Traps Extracted . | . . . Installed . | . . . Triggered . | . . . Machines | -11 -10 -10 ---------- Run | Yrd Mat Min Machines Disabled . | . . . Max in Single Turn . | . . . Machines Repaired . | . . . Machines Dismantled . | . . . Machines Sabotaged . | . . . Overloaded Fab Kills . | . . . Hacking | -11 -10 -10 --------- Run | Yrd Mat Min Machines Accessed 1 | . 1 . Terminals 1 | . 1 . Fabricators . | . . . Repair Stations . | . . . Recycling Units . | . . . Scanalyzers . | . . . Garrison Access . | . . . Total Hacks 6 | . 6 . Successful 3 | . 3 . Failed 3 | . 3 . Catastrophic . | . . . Database Lockouts . | . . . Manual 1 | . 1 . Terminals 6 | . 6 . Fabricators . | . . . Repair Stations . | . . . Recycling Units . | . . . Scanalyzers . | . . . Garrison Access . | . . . Terminal Hacks 3 | . 3 . Prototype ID Bank 1 | . 1 . Scanalyzer Index 1 | . 1 . Maintenance Status 1 | . 1 . Fabricator Hacks . | . . . Repair Station Hacks . | . . . Recycling Unit Hacks . | . . . Scanalyzer . | . . . Garrison Access Hacks . | . . . Unauthorized Hacks . | . . . Terminals . | . . . Fabricators . | . . . Repair Stations . | . . . Recycling Units . | . . . Scanalyzers . | . . . Garrison Access . | . . . Data Cores Recovered 1 | . 1 . Used 1 | . 1 . Hacking Detections 1 | . 1 . Full Trace Events . | . . . Feedback Events . | . . . Feedback Blocked . | . . . Robot Schematics Acquired . | . . . Robots Built . | . . . Authchips . | . . . Time . | . . . Total Robot Build Rating . | . . . Part Schematics Acquired . | . . . Parts Built . | . . . Authchips . | . . . Time . | . . . Total Part Build Rating . | . . . Parts Repaired . | . . . Time . | . . . Parts Recycled . | . . . Recycled Matter . | . . . Retrieved Matter . | . . . Retrieved Components . | . . . Parts Scanalyzed . | . . . Part Schematics Acquired . | . . . Parts Damaged . | . . . Bothacking | -11 -10 -10 ------------ Run | Yrd Mat Min Used RIF Installer . | . . . Robots Hacked . | . . . Non-combat . | . . . Combat . | . . . Robot Hacks Applied . | . . . Relay Couplers Released . | . . . Fabnet Peak Effective % . | . . . Robots Rewired . | . . . Allies Hacked . | . . . Hacks Repelled . | . . . Allies | -11 -10 -10 -------- Run | Yrd Mat Min Total Allies . | . . . Largest Group . | . . . Highest-Rated Group . | . . . Highest-Rated Ally . | . . . Total Orders . | . . . Ally Attacks . | . . . Total Damage . | . . . Kills . | . . . Allies Corrupted . | . . . Allies Melted . | . . . Intel | -11 -10 -10 ------- Run | Yrd Mat Min Robot Analysis Total . | . . . Derelict Logs Recovered 1 | . . 1 Drone Launches . | . . . Drone Recoveries . | . . . Exploration | -11 -10 -10 ------------- Run | Yrd Mat Min Turns Passed 525 | 72 205 248 Spaces Moved 494 | 51 204 239 Core 5 | 3 . 2 Treads . | . . . Legs . | . . . Wheels 489 | 48 204 237 Hover . | . . . Flight . | . . . Fastest Speed 50 | 50 80 80 Average Speed 84 | 95 80 84 Slowest Speed 100 | 100 80 100 Overloaded Moves . | . . . Propulsion Burnouts . | . . . Robots Hopped . | . . . Cave-ins Triggered . | . . . Exploration Rate (%) 33 | 4 43 52 Regions Visited 2 Branch Regions 1 Pre-discovered Areas . | . . . Known Exits Taken . | . . . Unknown Exits Taken 2 | 1 1 . Scrap Searched . | . . . Spaces Dug . | . . . Terrain Destroyed . | . . . Melee . | . . . Projectile . | . . . AOE . | . . . Terrain Rammed . | . . . Walls Destroyed . | . . . Machines Disabled . | . . . Actions | -11 -10 -10 --------- Run | Yrd Mat Min Total 567 | 68 223 276 Wait 19 | . . 19 Move 492 | 50 203 239 Hop . | . . . Pick Up 17 | 8 5 4 Fast Attach 1 | 1 . . Attach 8 | 5 1 2 Detach . | . . . Swap 4 | 2 . 2 Drop 2 | . . 2 Fire 20 | 2 13 5 Melee . | . . . Ram 4 | . 1 3 Kick . | . . . Crush . | . . . Escape Stasis . | . . . Rewire . | . . . Trap . | . . . Miscellaneous . | . . . Route ------- -11/Scrapyard -10/Materials (discovered 2 exits: [*Mat] / [*Min]) -10/Mines (discovered 1 exit: [*Mat]) History --------- Turn | Location | Event 12 | -11/Scrapyard | Discovered new exit (range 15) 73 | -11/Scrapyard | Entered Materials 150 | -10/Materials | Discovered new exit (range 16) 218 | -10/Materials | Discovered new exit (range 18) 278 | -10/Materials | Entered Mines 306 | -10/Mines | Discovered new exit (range 9) 309 | -10/Mines | Build established: Mutant 323 | -10/Mines | Learned Materials interactive machine intel 361 | -10/Mines | Joined a pair of Derelicts in attacking an 0b10 outpost 365 | -10/Mines | Assembled infested the area 370 | -10/Mines | Assisted by a Guerilla fighting off Assembled 417 | -10/Mines | Lost 3 allies 518 | -10/Mines | Core integrity fell below 50% 526 | -10/Mines | Core integrity fell below 20% 526 | -10/Mines | Destroyed by D-53 Grenadier with Mini Grenade Launcher Last Messages --------------- The unstable cave ceiling collapses. Particle Gun destroyed. K-01 Serf destroyed. U-05 Engineer lays Concrete. Assault Rifle destroyed. U-05 Engineer lays Concrete. Slammed into D-53 Grenadier. Destabilizing: System interference. Visual Processing Unit temporarily disabled. Slammed into D-53 Grenadier. Destabilizing: Core damaged (-10). U-05 Engineer lays Concrete. Com. Wheel destroyed. Slammed into D-53 Grenadier. U-05 Engineer lays Concrete. The unstable cave ceiling collapses. U-05 Engineer lays Concrete. R-06 Scavenger destroyed. The unstable cave ceiling collapses. U-05 Engineer lays Concrete. Map ----- +----------------------------------------------------+ | ##??????????## #?????????????????? | | ##????????????## ?????????????????? | | ## ##??????????????### ????????????????? | | ?## ##??????????????????# ????????????????? | | ??## ######????????????????## ???????????????? | | #### #??????????????????# ???????????????? | | #### #??????????????????? ??????????????? | | # #????????????????????????#?????????????????? | | #### #???????????????######?????????????????????? | | ??## #??????????????##"%%"##????????????????????? | | ?## #??# ######????#!][!] #????????????????????? | | ?# ##?# #??###!! [!#????????????????????? | | ?# ######## #### # ##????????????????????? | | ?# ###??## ##++###????????????????????? | | ?## #### ### % ##???????????????????? | | ??### % %! #???????????????????? | | ????## ######## [ = ##??????????????????? | | ?????# #???# #??????????????????? | | ?????## ##????# r ###????????????????? | | ??????#####??##### # # ##???????????????? | | ????????????## ##?# ????#???????????? | | ???????????## #?# *= #### #???????????? | | ????????#### ### %* #???????????? | | ???????## ### =[ u #????????????? | | ???????# ## = # ##???????????? | | ???????# # @ #???????????? | | ???????## d ????????? | | ????????### ????????? | | ??????????## d ######?????????? | | ???????????# # ##??????????????? | | ???????????# #### =%#???????????????? | | ???????##### #???# !!|#??????????????? | | ???????# # # # ##???? < ?????????????? | | ???????# #### ###?????? $ ????????????? | | ???????## #####???????? #####???????????? | | ????????# ## #???????????? #???????????????? | | ???????# # #?????????????#???????????????? | | ????###### #### ## #?????????????????????????????? | | ????# #??#### ##????????????????????????????? | | ????#%### ##??## ##???????????????????????????? | | #####[### ##### #???????????????????????????? | | *% ## #???????????????????????????? | | ######## #??????????????????????????? | | #??????## #?????????????????????????? | | "" """ #???????## #?????????????????????????? | | "" """ #????????### #????????????????????????? | | "" """ #??????????## #????????????????????????? | | #????????????# ##????????????????????????? | | ########?????????????###?????????????????????????? | | ?????????????????????????????????????????????????? | +----------------------------------------------------+ Best States ------------- Heat Dissipation 25 Energy Generation 14 Energy Capacity 250 Matter Stores 300 Matter Capacity 300 Sight Range 18 Terrain Scan Density 10 Evasion (%) 44 Item Schematics ----------------- None Robot Schematics ------------------ None Fabricated ------------ Nothing Alien Tech Used ----------------- None Achievements -------------- None Challenges ------------ None Game ------ Seed GreatComponentLoader Manual? 0 Play Time 00:12:40 Cumulative 29.2 hours Start 2024.04.09 @ 03:55:23 End 2024.04.09 @ 04:06:54 Sessions 1 Manual Loads 0 Difficulty Rogue Special Mode None Game No. 43 Rogue 43 Adventurer 0 Explorer 0 Win Type - Total 0 Types 0/0/0/0/0/0/0/0/0 Lore% 26 Gallery% 28 Achievement% 27 Wizard Run 0 Options --------- Layout 1 ASCII 0 Keyboard 0 Movement Mouse Keybinds 0 Fullscreen 1 Font 28/SmallcapsGlow Map View 55x47 Zoom Use 0% Tactical HUD 0 Map Filters NONE Filters NONE Steam 1 RUN: b295284f-61e5-44e3-a8b2-9564ea98b1bf